[Event "57th Biel Festival ATO 2024"]
[Site "Biel"]
[Date "2024.07.16"]
[Round "1.35"]
[White "Wolffs, Walter"]
[Black "Papaux, Jeremie"]
[Result "0-1"]
[ECO "C78"]
[WhiteElo "1544"]
[BlackElo "1814"]
[Annotator "NA"]
[PlyCount "82"]
[EventDate "2024.07.03"]
[EventType "swiss"]
[EventCountry "SUI"]
[SourceTitle "playchess.com"]
[Source "ChessBase"]
[SourceQuality "1"]
[TimeControl "40/5400+30:1800+30"]

1. e4 {[%emt 0:04:44]} e5 {[%emt 0:00:13]} 2. Nf3 {[%emt 0:00:10]} Nc6 {[%emt 0:00:18]} 3. Bb5 {[%emt 0:00:21]} a6 {[%emt 0:00:07]} 4. Ba4 {[%emt 0:00:05]} Nf6 {[%emt 0:00:05]} 5. O-O {[%emt 0:00:42]} b5 {[%emt 0:00:04]} 6. Bb3 {[%emt 0:00:05]} Bc5 {[%emt 0:00:05]} 7. c3 {[%emt 0:00:57]} d6 {[%emt 0:04:47]} 8. d4 {[%emt 0:00:34]} Bb6 {[%emt 0:00:46]} 9. h3 {[%emt 0:13:44]} O-O {[%emt 0:03:33]} 10. Bg5 {[%emt 0:01:02]} h6 {[%emt 0:00:54]} 11. Bh4 {[%emt 0:00:05]} Bb7 {[%emt 0:12:33]} 12. Nbd2 {[%emt 0:11:05]} exd4 {[%emt 0:05:45]} 13. cxd4 {[%emt 0:04:28]} Nxd4 {[%emt 0:01:43]} 14. Nxd4 {[%emt 0:12:42]} Bxd4 {[%emt 0:00:13]} 15. Qc2 {[%emt 0:00:05]} g5 {[%emt 0:13:02]} 16. Bg3 {[%emt 0:00:27]} c5 {[%emt 0:03:17]} 17. Qd3 {[%emt 0:03:14]} Bxb2 {[%emt 0:02:35]} 18. Rab1 {[%emt 0:00:06]} Be5 {[%emt 0:00:36]} 19. Bc2 {[%emt 0:04:10]} Nh5 {[%emt 0:11:13]} 20. a4 {[%emt 0:07:49]} Nf4 {[%emt 0:06:27]} 21. Bxf4 {[%emt 0:00:34]} gxf4 {[%emt 0:00:09]} 22. Nf3 {[%emt 0:01:18]} Qf6 {[%emt 0:03:12]} 23. Nh2 {[%emt 0:01:09]} Bc8 {[%emt 0:01:38]} 24. Rfd1 {[%emt 0:07:40]} Qg7 {[%emt 0:05:47]} 25. Kh1 {[%emt 0:03:59]} b4 {[%emt 0:02:50]} 26. Nf3 {[%emt 0:01:28]} Be6 {[%emt 0:01:33]} 27. Nxe5 {[%emt 0:00:51]} Qxe5 {[%emt 0:00:06]} 28. Qxd6 {[%emt 0:00:23]} Qxd6 {[%emt 0:00:05]} 29. Rxd6 {[%emt 0:00:11]} Rfb8 {[%emt 0:00:33]} 30. e5 {[%emt 0:03:48]} b3 {[%emt 0:01:07]} 31. Be4 {[%emt 0:00:05]} Ra7 {[%emt 0:00:05]} 32. Bd5 {[%emt 0:00:09]} Bxd5 {[%emt 0:00:20]} 33. Rxd5 {[%emt 0:00:16]} Rc7 {[%emt 0:00:11]} 34. a5 {[%emt 0:04:35]} c4 {[%emt 0:00:33]} 35. Rd6 {[%emt 0:00:08]} c3 {[%emt 0:00:09]} 36. Rb6 {[%emt 0:00:05]} Rd8 {[%emt 0:01:12]} 37. Rd6 {[%emt 0:06:03]} Rxd6 {[%emt 0:00:14]} 38. exd6 {[%emt 0:00:06]} c2 {[%emt 0:00:03]} 39. Rc1 {[%emt 0:01:53]} b2 {[%emt 0:00:23]} 40. dxc7 {[%emt 0:00:00]} bxc1=Q+ {[%emt 0:00:00]} 41. Kh2 {[%emt 0:00:47]} Qh1+ {[%emt 0:00:21]} 0-1

[Event "57th Biel Festival ATO 2024"]
[Site "Biel"]
[Date "2024.07.16"]
[Round "1.36"]
[White "Spaeti, Kurt"]
[Black "Kuenzli, Manuel"]
[Result "1-0"]
[ECO "C79"]
[WhiteElo "1804"]
[BlackElo "1542"]
[Annotator "NA RC"]
[PlyCount "55"]
[EventDate "2024.07.03"]
[EventType "swiss"]
[EventCountry "SUI"]
[SourceTitle "playchess.com"]
[Source "ChessBase"]
[SourceQuality "1"]
[TimeControl "40/5400+30:1800+30"]

1. e4 {[%emt 0:00:05]} e5 {[%emt 0:00:15]} 2. Nf3 {[%emt 0:00:08]} Nc6 {[%emt 0:00:20]} 3. Bb5 {[%emt 0:00:09]} d6 {[%emt 0:00:24]} 4. d4 {[%emt 0:00:43]} Bd7 {[%emt 0:00:33]} 5. O-O {[%emt 0:01:17]} Nf6 {[%emt 0:00:20]} 6. Re1 {[%emt 0:01:46]} a6 {[%emt 0:01:17]} 7. Ba4 {[%emt 0:00:48]} Bg4 {[%emt 0:01:48]} 8. d5 {[%emt 0:02:39]} b5 {[%emt 0:00:57]} 9. dxc6 {[%emt 0:02:51]} bxa4 {[%emt 0:00:28]} 10. Nc3 {[%emt 0:01:24]} Be7 {[%emt 0:01:25]} 11. Nxa4 {[%emt 0:01:31]} O-O {[%emt 0:00:35]} 12. Nc3 {[%emt 0:05:09]} Qe8 {[%emt 0:01:28]} 13. Nd5 {[%emt 0:01:48]} Rc8 {[%emt 0:01:23]} 14. c4 {[%emt 0:04:08]} Bd8 {[%emt 0:02:16]} 15. Qa4 {[%emt 0:07:40]} Bxf3 {[%emt 0:01:10]} 16. gxf3 {[%emt 0:00:09]} Ra8 {[%emt 0:01:23]} 17. Be3 {[%emt 0:06:08]} Qe6 {[%emt 0:01:38]} 18. Kg2 {[%emt 0:15:20]} Nh5 {[%emt 0:02:53]} 19. Qd1 {[%emt 0:07:25]} Qg6+ {[%emt 0:03:17]} 20. Kh1 {[%emt 0:01:33]} f5 {[%emt 0:03:21]} 21. Rg1 {[%emt 0:05:50]} Qf7 {[%emt 0:02:22]} 22. f4 {[%emt 0:09:11]} fxe4 {[%emt 0:01:23]} 23. fxe5 {[%emt 0:03:02]} dxe5 {[%emt 0:00:34]} 24. Qg4 {[%emt 0:02:47]} g6 {[%emt 0:02:35]} 25. Qxh5 {[%emt 0:00:50]} Kh8 {[%emt 0:00:48]} 26. Qxe5+ {[%emt 0:00:34]} Kg8 {[%emt 0:01:17]} 27. Bd4 {[%emt 0:03:30]} Bh4 {[%emt 0:01:53]} 28. Qh8# {[%emt 0:00:11]} 1-0

[Event "57th Biel Festival ATO 2024"]
[Site "Biel"]
[Date "2024.07.16"]
[Round "1.37"]
[White "Speerli, Maria"]
[Black "Gotti, Nicola"]
[Result "1/2-1/2"]
[ECO "C14"]
[WhiteElo "1540"]
[BlackElo "1804"]
[Annotator "NA RC"]
[PlyCount "63"]
[EventDate "2024.07.03"]
[EventType "swiss"]
[EventCountry "SUI"]
[SourceTitle "playchess.com"]
[Source "ChessBase"]
[SourceQuality "1"]
[TimeControl "40/5400+30:1800+30"]

1. d4 {[%emt 0:00:06]} d5 {[%emt 0:00:09]} 2. Nc3 {[%emt 0:05:08]} Nf6 {[%emt 0:14:29]} 3. Bg5 {[%emt 0:07:52]} e6 {[%emt 0:00:30]} 4. e4 {[%emt 0:00:30]} Be7 {[%emt 0:00:30]} 5. e5 {[%emt 0:00:30]} Ne4 {[%emt 0:00:30]} 6. Bxe7 {[%emt 0:00:30]} Qxe7 {[%emt 0:00:30]} 7. Nxe4 {[%emt 0:00:30]} dxe4 {[%emt 0:00:30]} 8. c3 {[%emt 0:00:30]} O-O {[%emt 0:00:30]} 9. Qe2 {[%emt 0:00:30]} f5 {[%emt 0:00:30]} 10. f3 {[%emt 0:00:30]} Nc6 {[%emt 0:00:30]} 11. fxe4 {[%emt 0:00:30]} Qh4+ {[%emt 0:00:30]} 12. g3 {[%emt 0:00:30]} Qxe4 {[%emt 0:00:30]} 13. Bg2 {[%emt 0:00:30]} Qxe2+ {[%emt 0:00:30]} 14. Nxe2 {[%emt 0:00:30]} Bd7 {[%emt 0:00:30]} 15. O-O {[%emt 0:01:50]} Rad8 {[%emt 0:05:00]} 16. Nf4 {[%emt 0:01:50]} g5 {[%emt 0:04:47]} 17. Nd3 {[%emt 0:02:31]} Kg7 {[%emt 0:13:47]} 18. Nc5 {[%emt 0:02:33]} Bc8 {[%emt 0:02:18]} 19. Rad1 {[%emt 0:01:29]} f4 {[%emt 0:09:48]} 20. gxf4 {[%emt 0:05:08]} gxf4 {[%emt 0:05:45]} 21. Nd3 {[%emt 0:00:47]} Rf5 {[%emt 0:05:24]} 22. Bxc6 {[%emt 0:04:35]} bxc6 {[%emt 0:00:32]} 23. Rxf4 {[%emt 0:00:59]} Rg5+ {[%emt 0:01:52]} 24. Kf2 {[%emt 0:02:38]} Kh8 {[%emt 0:14:19]} 25. Rg1 {[%emt 0:02:41]} Rh5 {[%emt 0:01:30]} 26. h4 {[%emt 0:01:36]} Rg8 {[%emt 0:03:48]} 27. Rfg4 {[%emt 0:04:28]} Rf8+ {[%emt 0:01:26]} 28. Ke3 {[%emt 0:02:02]} Rhf5 {[%emt 0:02:30]} 29. Rf4 {[%emt 0:01:18]} Ba6 {[%emt 0:01:06]} 30. Rxf5 {[%emt 0:00:26]} Rxf5 {[%emt 0:00:58]} 31. Nc5 {[%emt 0:00:58]} Bc8 {[%emt 0:01:37]} 32. a3 {[%emt 0:02:11]} 1/2-1/2

[Event "57th Biel Festival ATO 2024"]
[Site "Biel"]
[Date "2024.07.16"]
[Round "1.38"]
[White "Schaer, Bryan"]
[Black "Primbetova, Raikhan"]
[Result "1/2-1/2"]
[ECO "C02"]
[WhiteElo "1803"]
[BlackElo "1534"]
[Annotator "NA RC"]
[PlyCount "95"]
[EventDate "2024.07.03"]
[EventType "swiss"]
[EventCountry "SUI"]
[SourceTitle "playchess.com"]
[Source "ChessBase"]
[SourceQuality "1"]
[TimeControl "40/5400+30:1800+30"]

1. e4 {[%emt 0:00:04]} e6 {[%emt 0:00:03]} 2. d4 {[%emt 0:00:04]} d5 {[%emt 0:00:04]} 3. e5 {[%emt 0:00:03]} c5 {[%emt 0:00:08]} 4. c3 {[%emt 0:00:05]} Nc6 {[%emt 0:00:17]} 5. Nf3 {[%emt 0:00:09]} Nge7 {[%emt 0:01:03]} 6. Bd3 {[%emt 0:00:40]} Nf5 {[%emt 0:01:52]} 7. Bxf5 {[%emt 0:01:34]} exf5 {[%emt 0:00:05]} 8. O-O {[%emt 0:00:24]} Be7 {[%emt 0:00:23]} 9. Be3 {[%emt 0:01:54]} Qb6 {[%emt 0:06:02]} 10. Qc2 {[%emt 0:03:03]} O-O {[%emt 0:01:59]} 11. Re1 {[%emt 0:04:59]} Be6 {[%emt 0:04:02]} 12. Nbd2 {[%emt 0:01:04]} Rac8 {[%emt 0:02:40]} 13. Nb3 {[%emt 0:03:24]} cxd4 {[%emt 0:19:00]} 14. Nfxd4 {[%emt 0:09:59]} Nxd4 {[%emt 0:01:10]} 15. Nxd4 {[%emt 0:01:51]} Bc5 {[%emt 0:00:58]} 16. Qd2 {[%emt 0:10:30]} Qa6 {[%emt 0:21:47]} 17. b4 {[%emt 0:04:13]} Be7 {[%emt 0:02:44]} 18. a4 {[%emt 0:10:17]} Qc4 {[%emt 0:05:27]} 19. Rac1 {[%emt 0:08:46]} a5 {[%emt 0:04:33]} 20. bxa5 {[%emt 0:09:59]} Qxa4 {[%emt 0:01:12]} 21. Ra1 {[%emt 0:01:42]} Qc4 {[%emt 0:02:52]} 22. Ne2 {[%emt 0:00:19]} Ra8 {[%emt 0:07:26]} 23. Reb1 {[%emt 0:01:41]} Rfb8 {[%emt 0:05:47]} 24. Bb6 {[%emt 0:02:34]} Bc5 {[%emt 0:01:06]} 25. Nd4 {[%emt 0:09:19]} Bxb6 {[%emt 0:01:26]} 26. Rxb6 {[%emt 0:00:32]} Ra6 {[%emt 0:00:52]} 27. Rb4 {[%emt 0:04:04]} Qc5 {[%emt 0:01:30]} 28. Rb5 {[%emt 0:02:23]} Qc7 {[%emt 0:00:27]} 29. Qd3 {[%emt 0:02:54]} Qxe5 {[%emt 0:00:49]} 30. Rab1 {[%emt 0:00:36]} Qc7 {[%emt 0:01:02]} 31. Nxf5 {[%emt 0:02:44]} Bxf5 {[%emt 0:01:30]} 32. Qxf5 {[%emt 0:00:06]} g6 {[%emt 0:00:15]} 33. Qxd5 {[%emt 0:01:12]} Qxc3 {[%emt 0:00:16]} 34. h3 {[%emt 0:00:59]} Rba8 {[%emt 0:01:34]} 35. Rxb7 {[%emt 0:01:08]} Rf6 {[%emt 0:00:33]} 36. Rb8+ {[%emt 0:01:41]} Rxb8 {[%emt 0:00:04]} 37. Rxb8+ {[%emt 0:00:02]} Kg7 {[%emt 0:00:04]} 38. Rb1 {[%emt 0:00:35]} Rf5 {[%emt 0:01:18]} 39. Qd1 {[%emt 0:01:23]} Qxa5 {[%emt 0:00:09]} 40. Qd4+ {[%emt 0:00:00]} Qe5 {[%emt 0:00:00]} 41. Qxe5+ {[%emt 0:06:57]} Rxe5 {[%emt 0:00:21]} 42. f4 {[%emt 0:01:26]} Re4 {[%emt 0:02:08]} 43. g3 {[%emt 0:00:46]} Re2 {[%emt 0:01:38]} 44. Rf1 {[%emt 0:00:43]} f5 {[%emt 0:04:55]} 45. Rf2 {[%emt 0:00:13]} Rxf2 {[%emt 0:00:33]} 46. Kxf2 {[%emt 0:00:05]} Kf6 {[%emt 0:01:08]} 47. Kf3 {[%emt 0:00:40]} h6 {[%emt 0:02:27]} 48. g4 {[%emt 0:02:16]} 1/2-1/2

[Event "57th Biel Festival ATO 2024"]
[Site "Biel"]
[Date "2024.07.16"]
[Round "1.39"]
[White "Settegrana, Miro"]
[Black "Paholok, Igor"]
[Result "0-1"]
[ECO "C00"]
[WhiteElo "1532"]
[BlackElo "1801"]
[Annotator "NA RC"]
[PlyCount "100"]
[EventDate "2024.07.03"]
[EventType "swiss"]
[EventCountry "SUI"]
[SourceTitle "playchess.com"]
[Source "ChessBase"]
[SourceQuality "1"]
[TimeControl "40/5400+30:1800+30"]

1. e4 {[%emt 0:00:05]} e6 {[%emt 0:07:18]} 2. b3 {[%emt 0:00:37]} b6 {[%emt 0:00:10]} 3. Bb2 {[%emt 0:00:11]} Bb7 {[%emt 0:00:09]} 4. Nc3 {[%emt 0:00:08]} Nf6 {[%emt 0:00:33]} 5. d3 {[%emt 0:04:03]} Bb4 {[%emt 0:00:52]} 6. a3 {[%emt 0:07:20]} Be7 {[%emt 0:00:22]} 7. Be2 {[%emt 0:00:26]} d5 {[%emt 0:01:44]} 8. e5 {[%emt 0:06:16]} Nfd7 {[%emt 0:04:01]} 9. Nf3 {[%emt 0:01:11]} c5 {[%emt 0:01:53]} 10. d4 {[%emt 0:03:05]} Nc6 {[%emt 0:00:30]} 11. Bb5 {[%emt 0:03:57]} cxd4 {[%emt 0:02:26]} 12. Bxc6 {[%emt 0:01:06]} dxc3 {[%emt 0:03:20]} 13. Bxd7+ {[%emt 0:00:05]} Qxd7 {[%emt 0:00:34]} 14. Bxc3 {[%emt 0:00:26]} Ba6 {[%emt 0:02:31]} 15. a4 {[%emt 0:10:24]} Rc8 {[%emt 0:01:37]} 16. Qd2 {[%emt 0:04:26]} Qc7 {[%emt 0:00:36]} 17. Bd4 {[%emt 0:05:42]} Qxc2 {[%emt 0:01:22]} 18. Qxc2 {[%emt 0:03:14]} Rxc2 {[%emt 0:00:11]} 19. Kd1 {[%emt 0:01:50]} Rc7 {[%emt 0:01:29]} 20. Rb1 {[%emt 0:01:13]} Bb4 {[%emt 0:06:29]} 21. Ne1 {[%emt 0:03:20]} Kd7 {[%emt 0:01:06]} 22. Nc2 {[%emt 0:01:36]} Bd3 {[%emt 0:03:11]} 23. Rb2 {[%emt 0:02:32]} Bc3 {[%emt 0:00:49]} 24. Bxc3 {[%emt 0:02:04]} Rxc3 {[%emt 0:00:10]} 25. Nd4 {[%emt 0:01:00]} Rhc8 {[%emt 0:01:00]} 26. Kd2 {[%emt 0:00:43]} Bg6 {[%emt 0:02:00]} 27. Rd1 {[%emt 0:02:48]} a6 {[%emt 0:06:23]} 28. Ke1 {[%emt 0:04:01]} f6 {[%emt 0:03:13]} 29. exf6 {[%emt 0:02:01]} gxf6 {[%emt 0:00:26]} 30. Ne2 {[%emt 0:00:45]} Rc2 {[%emt 0:00:53]} 31. Rbb1 {[%emt 0:03:27]} Rxe2+ {[%emt 0:02:51]} 32. Kxe2 {[%emt 0:00:18]} Bxb1 {[%emt 0:00:14]} 33. Rxb1 {[%emt 0:00:03]} Rc2+ {[%emt 0:00:27]} 34. Ke1 {[%emt 0:00:25]} Kd6 {[%emt 0:00:12]} 35. Rd1 {[%emt 0:00:44]} e5 {[%emt 0:00:25]} 36. Rd3 {[%emt 0:00:28]} d4 {[%emt 0:01:42]} 37. Rf3 {[%emt 0:00:46]} Ke6 {[%emt 0:00:47]} 38. Kd1 {[%emt 0:00:32]} Rc7 {[%emt 0:03:23]} 39. Kd2 {[%emt 0:00:54]} f5 {[%emt 0:00:50]} 40. b4 {[%emt 0:00:00]} Rc4 {[%emt 0:00:00]} 41. Rb3 {[%emt 0:01:45]} Kd5 {[%emt 0:06:25]} 42. f3 {[%emt 0:01:02]} h5 {[%emt 0:00:59]} 43. h4 {[%emt 0:00:54]} Rc7 {[%emt 0:01:30]} 44. g4 {[%emt 0:02:03]} fxg4 {[%emt 0:00:59]} 45. fxg4 {[%emt 0:00:05]} hxg4 {[%emt 0:00:37]} 46. Rg3 {[%emt 0:00:16]} Rg7 {[%emt 0:00:58]} 47. h5 {[%emt 0:00:34]} Kc4 {[%emt 0:02:51]} 48. b5 {[%emt 0:01:06]} axb5 {[%emt 0:00:24]} 49. axb5 {[%emt 0:00:06]} Kxb5 {[%emt 0:00:19]} 50. Kd3 {[%emt 0:00:13]} Rh7 {[%emt 0:00:49]} 0-1

[Event "57th Biel Festival ATO 2024"]
[Site "Biel"]
[Date "2024.07.16"]
[Round "1.40"]
[White "Kim, Donghan"]
[Black "Hottinger Ieremia"]
[Result "1-0"]
[ECO "B94"]
[WhiteElo "1746"]
[BlackElo "1523"]
[Annotator "NA RC"]
[PlyCount "101"]
[EventDate "2024.07.03"]
[EventType "swiss"]
[EventCountry "SUI"]
[SourceTitle "playchess.com"]
[Source "ChessBase"]
[SourceQuality "1"]
[TimeControl "40/5400+30:1800+30"]

1. e4 {[%emt 0:00:12]} c5 {[%emt 0:00:12]} 2. Nf3 {[%emt 0:00:16]} d6 {[%emt 0:00:19]} 3. d4 {[%emt 0:00:22]} cxd4 {[%emt 0:00:10]} 4. Nxd4 {[%emt 0:00:08]} Nf6 {[%emt 0:00:09]} 5. Nc3 {[%emt 0:00:09]} a6 {[%emt 0:00:13]} 6. Bg5 {[%emt 0:00:34]} e5 {[%emt 0:00:26]} 7. Nb3 {[%emt 0:00:45]} Be6 {[%emt 0:00:57]} 8. Bd3 {[%emt 0:01:19]} Be7 {[%emt 0:00:19]} 9. Qd2 {[%emt 0:03:38]} Nbd7 {[%emt 0:01:33]} 10. O-O {[%emt 0:02:39]} O-O {[%emt 0:00:19]} 11. Rad1 {[%emt 0:04:53]} b5 {[%emt 0:03:26]} 12. a3 {[%emt 0:10:01]} Rc8 {[%emt 0:05:03]} 13. f3 {[%emt 0:04:15]} Bc4 {[%emt 0:04:52]} 14. Be3 {[%emt 0:02:11]} Nb6 {[%emt 0:01:02]} 15. Qf2 {[%emt 0:01:45]} Rb8 {[%emt 0:01:41]} 16. Rd2 {[%emt 0:03:51]} Qc7 {[%emt 0:01:04]} 17. Rfd1 {[%emt 0:01:23]} Rfd8 {[%emt 0:00:45]} 18. Kh1 {[%emt 0:05:09]} d5 {[%emt 0:01:52]} 19. Bxb6 {[%emt 0:01:32]} Rxb6 {[%emt 0:00:31]} 20. exd5 {[%emt 0:00:28]} Bxd5 {[%emt 0:00:31]} 21. Nxd5 {[%emt 0:05:27]} Nxd5 {[%emt 0:00:23]} 22. Bxh7+ {[%emt 0:01:44]} Kh8 {[%emt 0:00:52]} 23. Rxd5 {[%emt 0:02:53]} Rxd5 {[%emt 0:00:29]} 24. Rxd5 {[%emt 0:00:17]} Kxh7 {[%emt 0:00:18]} 25. Qd2 {[%emt 0:01:22]} Rd6 {[%emt 0:03:46]} 26. Qd3+ {[%emt 0:01:41]} Kg8 {[%emt 0:00:56]} 27. Rxd6 {[%emt 0:01:11]} Bxd6 {[%emt 0:00:30]} 28. h3 {[%emt 0:01:30]} a5 {[%emt 0:04:45]} 29. Nd2 {[%emt 0:00:52]} Qc5 {[%emt 0:02:20]} 30. Ne4 {[%emt 0:00:43]} Qd4 {[%emt 0:01:15]} 31. Qxd4 {[%emt 0:00:09]} exd4 {[%emt 0:00:10]} 32. Nxd6 {[%emt 0:00:05]} b4 {[%emt 0:00:33]} 33. axb4 {[%emt 0:00:24]} axb4 {[%emt 0:00:11]} 34. Nb5 {[%emt 0:00:25]} b3 {[%emt 0:00:40]} 35. Nxd4 {[%emt 0:00:33]} bxc2 {[%emt 0:00:14]} 36. Nxc2 {[%emt 0:00:06]} f5 {[%emt 0:00:11]} 37. Kg1 {[%emt 0:00:12]} Kf7 {[%emt 0:00:23]} 38. Kf2 {[%emt 0:00:10]} Ke6 {[%emt 0:00:28]} 39. Ke3 {[%emt 0:00:13]} g5 {[%emt 0:00:38]} 40. Kd4 {[%emt 0:00:00]} Kd6 {[%emt 0:00:00]} 41. b4 {[%emt 0:00:47]} Ke6 {[%emt 0:02:22]} 42. b5 {[%emt 0:00:11]} Kd6 {[%emt 0:00:24]} 43. Kc4 {[%emt 0:00:45]} Ke5 {[%emt 0:01:02]} 44. b6 {[%emt 0:00:51]} Kf4 {[%emt 0:00:24]} 45. b7 {[%emt 0:00:21]} Kg3 {[%emt 0:00:14]} 46. b8=Q+ {[%emt 0:00:37]} Kxg2 {[%emt 0:00:26]} 47. Qg8 {[%emt 0:00:14]} Kxf3 {[%emt 0:00:24]} 48. Qxg5 {[%emt 0:00:19]} f4 {[%emt 0:00:48]} 49. Kd3 {[%emt 0:00:40]} Kf2 {[%emt 0:01:41]} 50. Qg4 {[%emt 0:00:06]} f3 {[%emt 0:01:07]} 51. Kd2 {[%emt 0:01:09]} 1-0

[Event "57th Biel Festival ATO 2024"]
[Site "Biel"]
[Date "2024.07.16"]
[Round "1.41"]
[White "Lee, Jinwoo A"]
[Black "Hofer, Friedrich"]
[Result "0-1"]
[ECO "D37"]
[WhiteElo "1621"]
[BlackElo "1798"]
[Annotator "NA RC"]
[PlyCount "42"]
[EventDate "2024.07.03"]
[EventType "swiss"]
[EventCountry "SUI"]
[SourceTitle "playchess.com"]
[Source "ChessBase"]
[SourceQuality "1"]
[TimeControl "40/5400+30:1800+30"]

1. d4 {[%emt 0:00:11]} d5 {[%emt 0:00:17]} 2. c4 {[%emt 0:00:12]} e6 {[%emt 0:00:06]} 3. Nc3 {[%emt 0:00:59]} Be7 {[%emt 0:00:15]} 4. Nf3 {[%emt 0:01:13]} Nf6 {[%emt 0:00:11]} 5. Bf4 {[%emt 0:01:08]} O-O {[%emt 0:00:28]} 6. Ne5 {[%emt 0:01:44]} b6 {[%emt 0:00:26]} 7. g3 {[%emt 0:01:22]} Bb7 {[%emt 0:00:32]} 8. Bg2 {[%emt 0:00:13]} Nbd7 {[%emt 0:01:12]} 9. Qa4 {[%emt 0:03:21]} Nxe5 {[%emt 0:01:56]} 10. Bxe5 {[%emt 0:00:21]} a5 {[%emt 0:01:38]} 11. a3 {[%emt 0:01:01]} Rc8 {[%emt 0:04:14]} 12. b4 {[%emt 0:05:12]} axb4 {[%emt 0:00:37]} 13. axb4 {[%emt 0:00:18]} Ra8 {[%emt 0:00:19]} 14. Qd1 {[%emt 0:00:33]} Bxb4 {[%emt 0:00:15]} 15. Kd2 {[%emt 0:00:29]} Ne4+ {[%emt 0:01:25]} 16. Bxe4 {[%emt 0:00:30]} dxe4 {[%emt 0:00:04]} 17. Rf1 {[%emt 0:00:30]} f6 {[%emt 0:00:45]} 18. Bf4 {[%emt 0:01:49]} Qxd4+ {[%emt 0:01:13]} 19. Ke1 {[%emt 0:03:22]} Bxc3+ {[%emt 0:02:08]} 20. Bd2 {[%emt 0:02:30]} Rxa1 {[%emt 0:00:31]} 21. Qxa1 {[%emt 0:14:57]} Qxd2# {[%emt 0:00:23]} 0-1

[Event "57th Biel Festival ATO 2024"]
[Site "Biel"]
[Date "2024.07.15"]
[Round "1.62"]
[White "Kheerthi Ganta"]
[Black "Winkelman, Albert"]
[Result "0-1"]
[ECO "D05"]
[WhiteElo "1987"]
[BlackElo "2243"]
[Annotator "RC"]
[PlyCount "90"]
[EventDate "2024.07.03"]
[EventType "swiss"]
[EventCountry "SUI"]
[SourceTitle "playchess.com"]
[Source "ChessBase"]
[SourceQuality "1"]
[TimeControl "40/5400+30:1800+30"]

1. d4 Nf6 2. Nf3 d5 3. e3 e6 4. Bd3 c5 5. b3 Nbd7 6. Bb2 b6 7. Nbd2 Bb7 8. O-O Be7 9. Ne5 O-O 10. f4 Ne4 11. Rf3 Ndf6 12. Rh3 g6 13. Ndf3 Ne8 14. Qe1 N8d6 15. Rd1 Qc7 16. c4 Rad8 17. dxc5 bxc5 18. Bxe4 Nxe4 19. cxd5 exd5 20. Ng4 h5 21. Nge5 Bc8 22. g4 Bf6 23. Rg3 hxg4 24. Nd2 Nxg3 25. hxg3 Bf5 26. Qe2 Bxe5 27. Bxe5 Qe7 28. Nf1 f6 29. Bb2 Kg7 30. Qa6 Rh8 31. Kf2 Rh1 32. Qc6 Be4 33. Qa6 Rdh8 34. Bc3 Bf3 35. Re1 R8h3 36. a3 Rh8 37. b4 cxb4 38. axb4 Rb8 39. Ra1 d4 40. Bxd4 Rxb4 41. Qd3 Be4 42. Qd1 Bb7 43. Rxa7 Qe4 44. Rxb7+ Qxb7 45. Qxg4 Rb1 0-1

[Event "57th Biel Festival ATO 2024"]
[Site "Biel"]
[Date "2024.07.15"]
[Round "1.63"]
[White "Jaggy, Matteo"]
[Black "Malli, Shiivesh Sunil"]
[Result "1-0"]
[ECO "D02"]
[WhiteElo "2211"]
[BlackElo "1916"]
[Annotator "RC"]
[PlyCount "149"]
[EventDate "2024.07.03"]
[EventType "swiss"]
[EventCountry "SUI"]
[SourceTitle "playchess.com"]
[Source "ChessBase"]
[SourceQuality "1"]
[TimeControl "40/5400+30:1800+30"]

1. d4 d5 2. Bf4 Nf6 3. e3 c5 4. c3 Nc6 5. Nd2 e6 6. Ngf3 Be7 7. Ne5 Nxe5 8. Bxe5 Bd7 9. Be2 Qb6 10. Qb3 c4 11. Qc2 Rc8 12. O-O O-O 13. g4 h6 14. Rab1 Qa5 15. Bxf6 Bxf6 16. f4 Ba4 17. Qc1 a6 18. Nf3 Bc6 19. Ra1 Qb6 20. h4 Be7 21. Rb1 Qa5 22. Ra1 Qb6 23. Rf2 f5 24. Rg2 Bd6 25. h5 Kh8 26. Nh4 Be8 27. Qc2 Qd8 28. Rh2 Be7 29. Ng2 Bd7 30. Kh1 b5 31. Rg1 a5 32. Ne1 Bf6 33. Rhg2 fxg4 34. Bxg4 Qe7 35. Bd1 Be8 36. Qe2 a4 37. a3 Qf7 38. Rh2 Qe7 39. Bc2 Bf7 40. Bb1 Bg8 41. Qc2 Qe8 42. Nf3 Rc7 43. Rh3 Qf7 44. Nh2 Qd7 45. Ng4 Qf7 46. Kh2 Re7 47. Rg2 Ra7 48. Kg1 Rc7 49. Nh2 Qe8 50. Nf3 Qe7 51. Qg6 Qf7 52. Qc2 Qe7 53. Rhg3 Qf7 54. Rh2 Qe7 55. Kg2 Ra7 56. Ng1 Rc7 57. Kh1 Qf7 58. Nf3 Qe7 59. Kg1 Ra7 60. Rg4 Qf7 61. Qf2 Qe7 62. Qg3 Rb7 63. Rg2 Ra7 64. Bc2 Rb7 65. Rg6 Bh7 66. Rg4 Bxc2 67. Rxc2 Qf7 68. Rg6 Re7 69. Rg2 Qe8 70. Nh2 Ref7 71. Ng4 Qe7 72. Nxf6 Rxf6 73. Rxg7 R8f7 74. Rg8+ Kh7 75. Rh8+ 1-0

[Event "57th Biel Festival ATO 2024"]
[Site "Biel"]
[Date "2024.07.15"]
[Round "1.64"]
[White "Cordes, Jule"]
[Black "Follesa, Enrico"]
[Result "0-1"]
[ECO "E39"]
[WhiteElo "1900"]
[BlackElo "2241"]
[Annotator "RC"]
[PlyCount "100"]
[EventDate "2024.07.03"]
[EventType "swiss"]
[EventCountry "SUI"]
[SourceTitle "playchess.com"]
[Source "ChessBase"]
[SourceQuality "1"]
[TimeControl "40/5400+30:1800+30"]

1. d4 Nf6 2. c4 e6 3. Nc3 Bb4 4. Qc2 O-O 5. Nf3 c5 6. dxc5 Na6 7. g3 Nxc5 8. Bg2 b6 9. O-O Bb7 10. Nb5 Be4 11. Qd1 Nb7 12. a3 Be7 13. Bf4 d6 14. Nc3 Bc6 15. Qc2 a6 16. b4 Qc7 17. Rac1 Rac8 18. Rfd1 Nd7 19. e4 Ne5 20. Ne2 Qb8 21. Nxe5 dxe5 22. Be3 Nd6 23. c5 bxc5 24. Bxc5 Rfe8 25. Nc3 Nb7 26. Be3 a5 27. Qb1 Nd6 28. Bc5 Nc4 29. Bxe7 Rxe7 30. bxa5 Rb7 31. Qa2 Nxa5 32. Rb1 Nb3 33. a4 Nd4 34. Rxb7 Qxb7 35. Rb1 Qa6 36. Kh1 Qd3 37. Qb2 Ba8 38. Rc1 h6 39. a5 h5 40. h3 h4 41. Kh2 Kh7 42. Bf1 hxg3+ 43. fxg3 Nf3+ 44. Kh1 Qe3 45. Bg2 Ne1 46. Na2 Rxc1 47. Nxc1 Nxg2 48. Kxg2 Qxe4+ 49. Kf1 Qh1+ 50. Ke2 Qg2+ 0-1